bitfinex-derivatives/quotes_SOLF0:USTF0_20260114
["timestamp","ask_amount","ask_price","bid_price","bid_amount"]
[1768407100354,3.07107724,147.76,147.66,308.41424921]
[1768407100747,6.0926,147.74,147.66,308.41424921]
[1768407100948,9.16367724,147.74,147.66,308.41424921]
[1768407101149,3.07107724,147.74,147.66,308.41424921]
[1768407101856,3.07107724,147.74,147.66,79.94]
[1768407105755,9.16227724,147.77,147.66,79.94]
[1768407106057,3.07107724,147.77,147.66,79.94]
[1768407106553,6.0905,147.79,147.69,6.0943]
[1768407107157,97.81357724,147.79,147.66,79.94]
[1768407107356,3.07107724,147.78,147.66,79.94]
[1768407108257,6.0922,147.75,147.66,86.0355]
[1768407108751,3.07107724,147.82,147.67,103.32238875]
[1768407109153,3.07107724,147.82,147.69,6.0941]
[1768407109344,97.79437724,147.82,147.69,6.0941]
[1768407109546,3.07107724,147.8,147.68,79.96]
[1768407109744,6.0912,147.77,147.68,79.96]
[1768407110160,3.07107724,147.78,147.68,79.96]
[1768407110454,6.0906,147.79,147.68,79.96]
[1768407111756,6.0908,147.78,147.68,86.0546]
[1768407112152,3.21271377,147.79,147.68,86.0546]
[1768407112853,3.21271377,147.77,147.66,6.0954]
[1768407113757,6.0922,147.75,147.66,6.0954]
[1768407115958,3.21271377,147.76,147.65,79.96]
[1768407116165,3.21271377,147.79,147.66,8.50848875]
[1768407117362,3.21271377,147.79,147.7,3.20701982]
[1768407117758,6.0908,147.78,147.7,3.20701982]
[1768407117958,3.21271377,147.79,147.7,3.20701982]
[1768407118869,9.30311377,147.79,147.7,3.20701982]
[1768407119469,6.0908,147.78,147.7,3.20701982]
[1768407122570,6.0902,147.8,147.72,3.20701982]
[1768407122871,9.30291377,147.8,147.72,3.20701982]
[1768407123073,6.0904,147.79,147.72,3.20701982]
[1768407123457,6.0904,147.79,147.7,6.0939]
[1768407123663,6.0904,147.79,147.71,3.20701982]
[1768407124766,3.21271377,147.8,147.71,9.30041982]
[1768407125675,79.96,147.84,147.73,3.20701982]
[1768407125972,3.21271377,147.83,147.73,3.20701982]
[1768407126367,9.30201377,147.82,147.73,3.20701982]
[1768407128775,3.21271377,147.81,147.7,9.30071982]
[1768407129077,3.21271377,147.81,147.7,3.20701982]
[1768407129272,6.0908,147.78,147.72,2.0523868]
[1768407129659,3.21271377,147.78,147.7,2.0523868]
[1768407130773,6.0912,147.77,147.67,6.0951]
[1768407130976,3.21271377,147.77,147.68,2.0523868]
[1768407131175,3.21271377,147.75,147.66,2.0523868]
[1768407131367,3.21271377,147.75,147.63,20.10772281]
[1768407131563,3.21271377,147.75,147.66,2.0523868]
[1768407131970,6.0929,147.73,147.64,6.0963]
[1768407132170,6.0929,147.73,147.65,2.0523868]
[1768407132476,6.0929,147.73,147.67,2.0523868]
[1768407132667,9.30561377,147.73,147.67,2.0523868]
[1768407132868,9.30561377,147.73,147.66,2.0523868]
[1768407133169,5.26510057,147.7,147.6,2.0523868]
[1768407133380,3.21271377,147.7,147.62,2.0523868]
[1768407133567,3.21271377,147.7,147.64,2.0523868]
[1768407134369,3.21271377,147.7,147.6,6.0978]
[1768407134772,9.30681377,147.7,147.62,2.0523868]
[1768407134975,3.21271377,147.7,147.58,6.0987]
[1768407135169,3.21271377,147.69,147.58,6.0987]
[1768407135570,5.26510057,147.68,147.59,2.0523868]
[1768407135770,5.26510057,147.68,147.56,79.96]
[1768407135970,3.21271377,147.67,147.59,2.0523868]
[1768407136371,9.30811377,147.67,147.59,2.0523868]
[1768407136679,3.21271377,147.67,147.59,2.0523868]
[1768407136977,6.095,147.68,147.6,2.0523868]
[1768407137178,3.21271377,147.7,147.62,2.0523868]
[1768407137378,9.30681377,147.7,147.62,2.0523868]
[1768407137582,9.30681377,147.7,147.64,2.0523868]
[1768407138171,9.30681377,147.7,147.6,6.0979]
[1768407138372,86.0734,147.72,147.64,2.0523868]
[1768407138675,89.28611377,147.72,147.64,2.0523868]
[1768407139271,9.30611377,147.72,147.64,2.0523868]
[1768407140669,6.0926,147.74,147.66,2.0523868]
[1768407140878,9.17544294,147.74,147.66,2.0523868]
[1768407141074,11.22782974,147.74,147.66,2.0523868]
[1768407141379,6.0929,147.73,147.66,2.0523868]
[1768407141975,5.13522974,147.74,147.64,6.0963]
[1768407142182,5.13522974,147.74,147.65,2.0523868]
[1768407143280,11.22772974,147.74,147.65,2.0523868]
[1768407144690,3.08284294,147.74,147.65,8.1480868]
[1768407145990,3.08284294,147.74,147.65,2.0523868]
[1768407148411,3.08284294,147.74,147.65,8.1482868]
[1768407148995,3.08284294,147.74,147.65,2.0523868]
[1768407149198,2.0523868,147.76,147.67,2.0523868]
[1768407149400,2.0523868,147.76,147.64,94.8316]
[1768407149401,3.08284294,147.77,147.69,2.0523868]
[1768407150302,3.08284294,147.77,147.69,6.0943]
[1768407150502,3.08284294,147.77,147.65,94.8242]
[1768407150702,3.08284294,147.77,147.68,2.0523868]
[1768407150902,3.08284294,147.77,147.68,8.1469868]
[1768407151503,3.08284294,147.77,147.69,6.0943]
[1768407151703,3.08284294,147.77,147.7,2.0523868]
[1768407152509,3.08284294,147.77,147.7,6.0939]
[1768407153309,3.08284294,147.77,147.71,6.0934]
[1768407153707,3.08284294,147.77,147.69,2.0523868]
[1768407153913,5.13522974,147.77,147.69,6.0941]
[1768407154214,3.08284294,147.77,147.69,2.0523868]
[1768407154411,3.08284294,147.79,147.69,2.0523868]
[1768407154606,3.08284294,147.79,147.68,94.8054]
[1768407154806,3.08284294,147.79,147.71,2.0523868]
[1768407155317,3.08284294,147.76,147.67,79.98]
[1768407155507,3.08284294,147.78,147.69,2.0523868]
[1768407156015,3.08284294,147.78,147.7,6.0938]
[1768407156410,2.0523868,147.77,147.7,6.0938]
[1768407158115,3.08284294,147.78,147.71,6.0935]
[1768407158416,2.0523868,147.8,147.7,94.7951]
[1768407158615,2.0523868,147.8,147.71,2.0523868]
[1768407159817,2.0523868,147.8,147.73,6.0926]
[1768407160222,3.08284294,147.81,147.71,2.0523868]
[1768407160518,6.0886,147.84,147.71,2.0523868]
[1768407160519,3.08284294,147.84,147.75,2.0523868]
[1768407161023,3.08284294,147.84,147.75,8.1440868]
[1768407161024,3.08284294,147.83,147.75,8.1440868]
[1768407161217,3.08284294,147.83,147.75,2.0523868]
[1768407161521,2.0523868,147.84,147.76,6.0914]
[1768407161917,3.08284294,147.86,147.75,2.0523868]
[1768407162221,3.08284294,147.89,147.79,2.0523868]
[1768407162411,3.08284294,147.89,147.81,2.0523868]
[1768407162412,5.13522974,147.89,147.81,2.0523868]
[1768407162617,2.0523868,147.91,147.81,2.0523868]
[1768407162817,5.13522974,147.91,147.81,2.0523868]
[1768407163116,3.08284294,147.91,147.81,22.55368535]
[1768407163316,5.13522974,147.91,147.81,117.27408535]
[1768407163617,3.08284294,147.91,147.81,117.27408535]
[1768407163823,5.13522974,147.91,147.81,117.27408535]
[1768407164022,393.80680271,148.0,147.81,117.27408535]
[1768407164023,2.0523868,147.92,147.84,6.088]
[1768407164221,2.0523868,147.93,147.84,6.088]
[1768407164423,2.0523868,147.93,147.83,2.0523868]
[1768407164618,5.13522974,147.93,147.82,94.718]
[1768407164822,5.13522974,147.93,147.84,2.0523868]
[1768407165220,2.0523868,147.91,147.82,2.0523868]
[1768407165820,2.0523868,147.91,147.84,6.088]
[1768407166119,2.0523868,147.91,147.83,96.7634868]
[1768407166320,3.08284294,147.93,147.85,6.0875]
[1768407166619,2.0523868,147.92,147.85,6.0875]
[1768407167135,5.13522974,147.93,147.85,6.0875]
[1768407167322,3.08284294,147.93,147.85,6.0875]
[1768407167528,2.0523868,147.92,147.86,6.0871]
[1768407167725,3.08284294,147.94,147.86,6.0871]
[1768407167925,5.13522974,147.93,147.86,6.0871]
[1768407168328,3.08284294,147.93,147.86,6.0871]
[1768407168626,5.13522974,147.93,147.86,6.0871]
[1768407169427,5.13522974,147.93,147.84,86.028]
[1768407170122,3.08284294,147.93,147.84,86.028]
[1768407170323,2.0523868,147.92,147.84,86.028]
[1768407170529,2.0523868,147.92,147.85,6.0876]
[1768407170722,3.08284294,147.93,147.85,96.7514868]
[1768407171119,3.08284294,147.93,147.87,6.0866]
[1768407171523,79.92,147.99,147.85,2.0523868]
[1768407171726,2.99955187,147.99,147.9,96.7195868]
[1768407171921,0.20270271,148.0,147.92,2.0523868]
[1768407172124,0.20270271,148.0,147.92,94.6542]
[1768407172327,0.20270271,148.0,147.94,6.0839]
[1768407172527,0.20270271,148.0,147.92,2.0523868]
[1768407173331,0.20270271,148.0,147.93,6.0844]
[1768407173733,2.0523868,147.99,147.91,6.0852]
[1768407173921,3.20225458,148.0,147.91,6.0852]
[1768407174121,0.20270271,148.0,147.9,174.5846]
[1768407174429,0.20270271,148.0,147.92,94.6529]
[1768407174637,0.20270271,148.0,147.92,96.7052868]
[1768407175028,0.20270271,148.0,147.92,2.0523868]
[1768407175425,5.25464138,148.0,147.9,81.9723868]
[1768407175631,2.0523868,147.98,147.9,79.92]
[1768407175838,2.99955187,147.99,147.9,79.92]
[1768407176035,2.0523868,147.98,147.9,79.92]
[1768407176723,2.99955187,147.99,147.9,79.92]
[1768407176930,2.0523868,147.98,147.9,86.0055]
[1768407177129,2.0523868,147.98,147.9,79.92]
[1768407177538,2.99955187,147.99,147.9,79.92]
[1768407177837,2.0523868,147.98,147.9,79.92]
[1768407178037,2.99955187,147.99,147.91,6.0852]
[1768407178230,5.05193867,147.99,147.91,6.0852]
[1768407179536,2.99955187,147.99,147.91,6.0852]
[1768407179842,0.20270271,148.0,147.93,2.0523868]
[1768407180130,0.20270271,148.0,147.95,6.0835]
[1768407180333,2.25508951,148.0,147.9,79.92]
[1768407180538,2.0523868,147.98,147.91,79.86]
[1768407181236,2.0523868,147.99,147.91,79.86]
[1768407181533,2.0523868,147.97,147.85,189.393]
[1768407181732,5.05193867,147.97,147.86,79.86]
[1768407181934,5.05193867,147.95,147.86,79.86]
[1768407182141,2.99955187,147.95,147.86,79.86]
[1768407182340,2.0523868,147.92,147.82,96.7681868]
[1768407182533,2.0523868,147.92,147.84,6.0881]
[1768407182731,2.0523868,147.91,147.84,6.0881]
[1768407183331,8.22760627,147.94,147.84,6.0881]
[1768407183539,2.99955187,147.93,147.84,6.0881]
[1768407184637,2.99955187,147.93,147.85,6.0876]
[1768407184839,2.99955187,147.93,147.84,94.7041]
[1768407185043,2.99955187,147.93,147.83,174.5697]
[1768407185540,2.99955187,147.93,147.84,6.0881]
[1768407187143,2.99955187,147.93,147.83,79.86]
[1768407187543,2.99955187,147.93,147.86,6.0872]
[1768407187932,2.99955187,147.96,147.85,94.6997]
[1768407188134,2.99955187,147.96,147.84,94.7032]
[1768407188135,2.99955187,147.96,147.87,6.0868]
[1768407188335,2.99955187,147.96,147.84,94.7032]
[1768407188837,2.99955187,147.95,147.85,6.0876]
[1768407189045,2.99955187,147.95,147.81,20.5802987]
[1768407189343,2.99955187,147.95,147.8,174.5881]
[1768407189735,2.99955187,147.91,147.81,6.0893]
[1768407190342,2.99955187,147.89,147.79,6.09]
[1768407190736,2.99955187,147.89,147.72,103.27444835]
[1768407190737,2.99955187,147.88,147.72,103.27444835]
[1768407191034,2.99955187,147.91,147.77,94.7469]
[1768407191235,2.99955187,147.89,147.77,94.7469]
[1768407191441,2.99955187,147.89,147.77,174.6269]
[1768407191629,2.99955187,147.89,147.8,94.7318]
[1768407191834,2.99955187,147.92,147.81,94.7244]
[1768407192236,2.99955187,147.92,147.83,6.0884]
[1768407192435,2.99955187,147.92,147.78,8.49514835]
[1768407192637,2.99955187,147.91,147.77,174.6269]
[1768407193043,2.99955187,147.91,147.8,6.0896]
[1768407193243,82.87955187,147.9,147.8,6.0896]
[1768407193543,2.99955187,147.9,147.8,6.0896]
[1768407196545,2.99955187,147.9,147.81,6.0893]
[1768407197740,2.99955187,147.9,147.81,94.7247]
[1768407198338,2.99955187,147.9,147.82,6.0888]
[1768407198640,2.99955187,147.9,147.77,79.88]
[1768407198849,2.99955187,147.9,147.78,6.0906]
[1768407199643,2.99955187,147.87,147.79,6.0901]
[1768407200156,2.99955187,147.87,147.77,6.0908]
[1768407200445,2.99955187,147.87,147.75,103.25894835]
[1768407201851,2.99955187,147.87,147.78,6.0906]
[1768407203252,2.99955187,147.87,147.75,94.7638]
[1768407203253,3.01898802,147.86,147.74,174.6473]
[1768407203445,3.01898802,147.86,147.74,79.88]
[1768407204457,79.9,147.85,147.74,79.88]
[1768407204759,82.91898802,147.85,147.77,6.0909]
[1768407205649,82.91898802,147.85,147.78,6.0906]
[1768407206258,3.01898802,147.85,147.78,6.0906]
[1768407207561,79.9,147.86,147.77,94.7496]
[1768407207859,82.91898802,147.87,147.77,94.7496]
[1768407208056,3.01898802,147.87,147.8,6.0896]
[1768407209347,3.01898802,147.87,147.77,94.7496]
[1768407209348,3.01898802,147.87,147.81,6.0893]
[1768407210563,3.01898802,147.87,147.77,94.7496]
[1768407211260,3.01898802,147.87,147.81,6.0894]
[1768407215564,3.01898802,147.87,147.77,94.7496]
[1768407215969,3.01898802,147.87,147.74,174.6459]
[1768407216271,3.01898802,147.86,147.78,6.0906]
[1768407217276,3.01898802,147.86,147.79,6.0902]
[1768407217767,3.01898802,147.86,147.76,94.7528]
[1768407218576,3.01898802,147.86,147.75,94.7624]
[1768407218776,31.28418914,148.15,147.78,94.7436]
[1768407218777,82.91898802,147.89,147.78,94.7436]
[1768407219171,3.01898802,147.92,147.8,94.7319]
[1768407219371,3.01898802,147.92,147.81,94.7251]
[1768407219569,3.01898802,147.92,147.84,6.0881]
[1768407219776,3.01898802,147.92,147.82,94.7155]
[1768407220275,3.01898802,147.92,147.85,6.0876]
[1768407220475,3.01898802,147.92,147.81,94.7251]
[1768407220869,3.01898802,147.92,147.82,94.7168]
[1768407221069,3.01898802,147.92,147.83,94.7108]
[1768407221462,6.083,147.97,147.83,94.7108]
[1768407221671,3.01898802,147.95,147.84,94.7034]
[1768407222068,3.01898802,147.98,147.88,6.0864]
[1768407222577,82.91898802,147.98,147.88,6.0864]
[1768407223078,3.01898802,147.97,147.88,6.0864]
[1768407223269,3.01898802,147.97,147.89,6.086]
[1768407223974,3.01898802,147.97,147.9,6.0856]
[1768407224369,3.22169073,148.0,147.88,94.6765]
[1768407224565,3.22169073,148.0,147.91,6.0851]
[1768407225273,3.22169073,148.0,147.92,6.0848]
[1768407226568,0.20270271,148.0,147.93,6.0844]
[1768407226774,0.20270271,148.0,147.91,94.6583]
[1768407227178,0.20270271,148.0,147.9,94.664]
[1768407227465,0.20270271,148.0,147.93,6.0843]
[1768407227970,0.20270271,148.0,147.91,94.6581]
[1768407228271,0.20270271,148.0,147.9,97.86214414]
[1768407228272,3.22169073,148.0,147.92,6.0848]
[1768407228473,3.01898802,148.06,147.92,94.6539]
[1768407228677,3.01898802,148.06,147.93,97.84354414]
[1768407228871,3.01898802,148.03,147.92,94.6539]
[1768407229379,3.19814414,148.08,147.98,6.0824]
[1768407229876,3.19814414,148.06,147.97,1.6147524]
[1768407230271,3.19814414,148.05,147.97,1.6147524]
[1768407230466,94.5434,148.1,147.97,1.6147524]
[1768407230670,3.19814414,148.07,147.97,7.6974524]
[1768407231180,79.86,148.08,147.97,7.6974524]
[1768407231372,3.23938625,148.07,147.97,7.6974524]
[1768407231680,6.43753039,148.07,147.98,6.0822]
[1768407231881,6.43753039,148.05,147.97,1.6147524]
[1768407232174,3.23938625,148.05,147.97,1.6147524]
[1768407232371,6.43753039,148.05,147.97,1.6147524]
[1768407233279,3.19814414,148.04,147.97,1.6147524]
[1768407234377,6.43753039,148.04,147.94,87.57843304]
[1768407234681,6.43753039,148.04,147.95,1.61443304]
[1768407235081,3.19814414,148.03,147.95,1.61443304]
[1768407235580,3.19814414,148.03,147.95,22.06792854]
[1768407235789,3.23938625,148.04,147.96,1.61443304]
[1768407236883,3.23938625,148.04,147.96,7.69753304]
[1768407237884,3.23938625,148.04,147.95,20.4534955]
[1768407238183,3.23938625,148.04,147.95,1.61443304]
[1768407238481,6.43753039,148.03,147.95,1.61443304]
[1768407238883,3.19814414,148.03,147.96,1.61443304]
[1768407239076,3.23938625,148.08,147.97,1.61443304]
[1768407239385,6.43753039,148.08,147.97,1.61443304]
[1768407239979,3.23938625,148.07,147.97,1.61443304]
[1768407240385,3.23938625,148.07,147.98,1.61443304]
[1768407240577,3.23938625,148.07,147.99,1.61443304]
[1768407240877,3.23938625,148.07,147.99,7.69623304]
[1768407241079,6.43753039,148.06,147.99,6.0818]
[1768407241388,3.23938625,148.05,147.96,1.61443304]
[1768407241584,3.23938625,148.05,147.97,6.0827]
[1768407242493,94.5405,148.1,147.96,1.61443304]
[1768407242494,6.43753039,148.04,147.96,1.61443304]
[1768407242976,3.23938625,148.04,147.96,1.61443304]
[1768407244589,3.23938625,148.04,147.96,7.69763304]
[1768407244887,6.0793,148.06,147.96,7.69763304]
[1768407244888,3.23938625,148.06,147.96,1.61443304]
[1768407245392,3.23938625,148.06,147.98,6.0823]
[1768407245907,6.43753039,148.09,147.99,7.69633304]
[1768407246088,6.43753039,148.08,148.0,1.61443304]
[1768407246291,3.23938625,148.08,148.0,1.61443304]
[1768407247395,3.23938625,148.08,147.99,6.0819]
[1768407247589,3.23938625,148.08,147.99,7.69633304]
[1768407247783,3.23938625,148.06,147.97,6.0827]
[1768407248192,3.23938625,148.06,147.97,7.69713304]
[1768407249401,3.23938625,148.06,147.99,1.61443304]
[1768407249894,3.23938625,148.06,147.99,7.69643304]
[1768407250793,3.23938625,148.06,147.99,6.082]
[1768407251195,9.31868625,148.06,147.98,1.61443304]
[1768407251393,9.31868625,148.06,147.98,3.65950775]
[1768407251696,0.04289937,148.04,147.98,1.61443304]
[1768407251897,0.04289937,148.04,147.98,3.65950775]
[1768407252494,0.04289937,148.04,147.98,1.61443304]
[1768407252694,0.04289937,148.04,147.98,3.65950775]
[1768407253494,0.04289937,148.04,147.98,1.61443304]
[1768407253693,0.04289937,148.04,147.98,3.65950775]
[1768407254495,0.04289937,148.04,147.98,1.61443304]
[1768407256098,0.04289937,148.04,147.97,2.04507471]
[1768407256295,0.04289937,148.04,147.91,1.61443304]
[1768407256296,3.23938625,148.03,147.91,1.61443304]
[1768407256494,3.23938625,148.01,147.93,2.04507471]
[1768407256695,3.23938625,148.01,147.91,21.73276445]
[1768407256893,9.32068625,148.01,147.92,3.65950775]
[1768407257102,3.23938625,148.01,147.92,3.65950775]
[1768407257698,6.0817,148.0,147.92,3.65950775]
[1768407257896,3.23938625,148.01,147.93,1.61443304]
[1768407258308,3.23938625,148.0,147.91,8.13027471]
[1768407258599,3.23938625,148.0,147.92,2.04507471]
[1768407258908,3.23938625,148.0,147.9,1.61443304]
[1768407259298,3.23938625,147.97,147.9,2.04507471]
[1768407259604,3.23938625,147.97,147.88,28.66544132]
[1768407259807,3.23938625,147.97,147.89,2.04507471]
[1768407260004,9.32238625,147.97,147.89,2.04507471]
[1768407260204,3.16997949,147.96,147.89,2.04507471]
[1768407260409,3.16997949,147.96,147.88,6.0862]
[1768407260700,3.16997949,147.96,147.88,8.13127471]
[1768407260911,3.16997949,147.96,147.89,1.62072335]
[1768407261107,3.16997949,147.96,147.9,2.04507471]
[1768407261611,3.16997949,147.96,147.89,1.62072335]
[1768407261803,3.16997949,147.96,147.89,3.66579806]
[1768407262509,5.2150542,147.96,147.86,234.88982776]
[1768407262810,3.24698571,147.94,147.87,2.04507471]
[1768407263505,3.24698571,147.97,147.88,1.62072335]
[1768407263710,3.24698571,147.97,147.89,2.04507471]
[1768407264507,3.24698571,147.97,147.88,3.66579806]
[1768407265014,3.24698571,147.96,147.88,1.62072335]
[1768407266006,3.24698571,147.94,147.85,2.04507471]
[1768407266208,2.04507471,147.93,147.84,3.66579806]
[1768407266404,5.29206042,147.93,147.84,3.66579806]
[1768407266604,3.24698571,147.92,147.84,3.66579806]
[1768407267614,3.24698571,147.92,147.84,1.62072335]
[1768407267809,9.33198571,147.92,147.84,1.62072335]
[1768407268108,11.37706042,147.92,147.84,1.62072335]
[1768407268500,3.24698571,147.96,147.86,1.62072335]
[1768407268705,3.24698571,147.95,147.86,1.62072335]
[1768407269110,3.24698571,147.93,147.86,1.62072335]
[1768407270812,5.29206042,147.93,147.85,2.04507471]
[1768407271008,5.29206042,147.93,147.84,2.04507471]
[1768407271009,9.33198571,147.92,147.84,2.04507471]
[1768407271612,9.33198571,147.92,147.83,7.70932335]
[1768407271907,9.33198571,147.92,147.84,2.04507471]
[1768407274119,9.33198571,147.92,147.83,7.70932335]
[1768407274314,9.33198571,147.92,147.84,2.04507471]
[1768407274616,9.33198571,147.92,147.83,7.70932335]
[1768407274812,3.24698571,147.9,147.83,1.62072335]
[1768407275020,3.24698571,147.9,147.84,2.04507471]
[1768407275313,3.24698571,147.9,147.83,3.66579806]
[1768407275621,6.0855,147.91,147.79,1.62072335]
[1768407275622,3.24698571,147.89,147.79,1.62072335]
[1768407275823,3.24698571,147.89,147.81,2.04507471]
[1768407277018,6.0868,147.88,147.81,2.04507471]
[1768407277320,3.24698571,147.89,147.79,1.62072335]
[1768407277622,3.24698571,147.89,147.8,3.66579806]
[1768407277623,9.33348571,147.89,147.8,3.66579806]
[1768407277812,3.24698571,147.89,147.81,2.04507471]
[1768407278422,3.24698571,147.89,147.82,1.62072335]
[1768407278922,3.24698571,147.89,147.82,3.66579806]
[1768407279114,3.24698571,147.91,147.82,3.66579806]
[1768407279514,3.24698571,147.91,147.82,1.62072335]
[1768407279711,2.04507471,147.9,147.79,7.71062335]
[1768407279914,3.24698571,147.89,147.79,7.71062335]
[1768407280114,3.24698571,147.88,147.8,2.04507471]
[1768407280721,3.24698571,147.88,147.79,7.71062335]
[1768407281021,3.24698571,147.88,147.8,2.04507471]
[1768407282417,3.24698571,147.88,147.8,8.13477471]
[1768407283918,3.24698571,147.87,147.8,2.04507471]
[1768407284117,3.24698571,147.87,147.78,9.75609806]
[1768407284731,3.24698571,147.87,147.78,7.71102335]
[1768407285027,3.24698571,147.86,147.78,6.0903]
[1768407285224,3.24698571,147.86,147.78,8.13537471]
[1768407285624,3.24698571,147.86,147.78,6.0903]
[1768407285930,3.24698571,147.86,147.79,2.04507471]
[1768407286236,3.24698571,147.86,147.79,6.0902]
[1768407286530,3.24698571,147.86,147.79,8.13527471]
[1768407287441,3.24698571,147.86,147.79,2.04507471]
[1768407288531,9.33438571,147.86,147.79,2.04507471]
[1768407289235,3.24698571,147.86,147.79,2.04507471]
[1768407290931,3.24698571,147.86,147.79,8.13517471]
[1768407291137,3.24698571,147.86,147.79,6.0901]
[1768407291336,3.24698571,147.86,147.79,8.13517471]
[1768407291640,3.24698571,147.86,147.79,3.66098359]
[1768407291936,3.24698571,147.86,147.81,2.04507471]
[1768407292838,6.0869,147.88,147.81,2.04507471]
[1768407293029,9.36045008,147.88,147.81,2.04507471]
[1768407293533,3.27355008,147.87,147.8,6.0899]
[1768407294636,3.27355008,147.87,147.8,8.13497471]
[1768407295836,3.27355008,147.87,147.8,9.75088359]
[1768407296037,11.40462479,147.9,147.81,7.70530888]
[1768407296231,3.27355008,147.93,147.82,1.61590888]
[1768407296431,5.31862479,147.92,147.83,3.66098359]
[1768407296630,3.27355008,147.92,147.83,1.61590888]
[1768407296832,2.04507471,147.91,147.83,1.61590888]
[1768407297032,3.27355008,147.92,147.83,1.61590888]
[1768407297432,3.27355008,147.92,147.83,3.66098359]
[1768407297825,9.35875008,147.92,147.83,1.61590888]
[1768407298030,3.27355008,147.92,147.83,1.61590888]
[1768407298225,3.27355008,147.92,147.83,3.66098359]
[1768407299440,9.35865008,147.92,147.83,9.74948359]
[1768407299737,5.31862479,147.92,147.83,9.74948359]
[1768407300531,3.27355008,147.92,147.84,1.61590888]
[1768407300935,3.27355008,147.92,147.85,9.74868359]
[1768407301541,3.27355008,147.92,147.85,3.66098359]
[1768407302041,3.27355008,147.92,147.85,1.61590888]
[1768407302244,3.27355008,147.92,147.84,2.04507471]
[1768407302838,5.31862479,147.92,147.84,2.04507471]
[1768407303141,3.27355008,147.92,147.85,1.61590888]
[1768407303441,2.04507471,147.94,147.86,3.66098359]
[1768407303644,94.598,148.01,147.89,1.61590888]
[1768407303645,3.27355008,147.98,147.89,1.61590888]
[1768407303844,3.27355008,147.98,147.89,7.70190888]
[1768407304041,3.27355008,147.96,147.84,1.61590888]
[1768407304246,3.27355008,147.94,147.85,3.66098359]
[1768407304842,3.27355008,147.94,147.86,6.0873]
[1768407305438,3.27355008,147.94,147.87,9.74778359]
[1768407305648,2.04507471,147.95,147.87,9.74778359]
[1768407305844,2.04507471,147.95,147.88,1.61590888]
[1768407306340,3.27355008,147.94,147.86,1.61590888]
[1768407307142,3.27355008,147.9,147.83,1.61590888]
[1768407307537,5.31862479,147.93,147.83,1.61590888]
[1768407307844,3.27355008,147.92,147.83,3.66098359]
[1768407308041,3.27355008,147.92,147.83,9.74948359]
[1768407308241,85.9644,147.94,147.85,1.61590888]
[1768407308242,3.27355008,147.94,147.85,1.61590888]
[1768407308545,5.31862479,147.94,147.85,9.74868359]
[1768407308743,5.31862479,147.94,147.85,7.70360888]
[1768407309037,3.27355008,147.94,147.86,1.61590888]
[1768407309944,3.27355008,147.94,147.86,7.70320888]
[1768407310941,3.27355008,147.94,147.85,2.04507471]
[1768407310942,3.27355008,147.97,147.88,1.61590888]
[1768407311246,5.31862479,147.97,147.88,1.61590888]
[1768407311441,3.27355008,147.97,147.88,1.61590888]
[1768407311952,3.27355008,147.97,147.9,1.61590888]
[1768407312138,83.07986082,147.99,147.9,1.61590888]
[1768407312139,83.15355008,147.99,147.9,1.61590888]
[1768407312433,3.27355008,147.99,147.9,1.61590888]
[1768407313432,3.27355008,148.02,147.91,1.61590888]
[1768407313638,3.27355008,148.02,147.92,1.61590888]
[1768407313837,3.27355008,148.02,147.95,6.0836]
[1768407314246,3.27355008,148.02,147.94,1.61590888]
[1768407314745,6.4734109,148.04,147.94,1.61590888]
[1768407315147,6.4734109,148.04,147.95,6.0835]
[1768407315349,3.27355008,148.07,147.97,1.61590888]
[1768407315741,3.27355008,148.07,147.97,7.69860888]
[1768407317149,6.4734109,148.06,147.97,7.69860888]
[1768407318046,3.27355008,148.05,147.97,7.69860888]
[1768407318848,3.27355008,148.05,147.98,6.0822]
[1768407319348,3.27355008,148.05,147.98,7.69810888]
[1768407319543,3.27355008,148.05,147.98,1.61590888]
[1768407319744,3.27355008,148.05,147.95,94.6323]
[1768407319745,3.27355008,148.07,147.99,1.61590888]
[1768407319949,3.27355008,148.07,147.96,1.61590888]
[1768407320345,3.27355008,148.07,147.97,6.0826]
[1768407320546,3.27355008,148.07,147.98,1.61917963]
[1768407323149,6.21476631,148.06,147.96,1.61406391]
[1768407323447,3.01490549,148.05,147.96,1.61406391]
[1768407325050,3.01490549,148.03,147.93,1.61406391]
[1768407325250,3.01490549,148.03,147.91,105.45312234]
[1768407325445,3.01490549,148.01,147.93,6.0844]
[1768407325649,3.01490549,148.01,147.93,7.69846391]
[1768407325945,6.0814,148.01,147.92,6.0848]
[1768407326248,3.01490549,148.0,147.92,6.0848]
[1768407326949,9.09560549,148.03,147.93,1.61406391]
[1768407327141,3.01490549,148.02,147.93,1.61406391]
[1768407327751,3.01490549,148.02,147.94,6.084]
[1768407328251,3.01490549,148.02,147.93,1.61406391]